[Event "Hunan Belt and Road Open 2019"]
[Site "Hunan"]
[Date "2019.08.01"]
[Round "4.30"]
[White "Taher, Yoseph Theolifus"]
[Black "Lin, Weiguo"]
[Result "1-0"]
[ECO "B23"]
[WhiteElo "2460"]
[BlackElo "2408"]
[Annotator "ChessBase"]
[PlyCount "91"]
[EventDate "2019.07.29"]
[EventType "swiss"]
[EventCountry "CHN"]
[SourceTitle "playchess.com"]
[Source "ChessBase"]
[SourceQuality "1"]
[TimeControl "5400+30"]

1. e4 {[%emt 0:00:00]} c5 {[%emt 0:00:00]} 2. Nc3 {[%emt 0:00:00]} e6 {[%emt 0:00:08]} 3. f4 {[%emt 0:00:11]} Nc6 {[%emt 0:01:27]} 4. Nf3 {[%emt 0:00:10]} d5 {[%emt 0:03:29]} 5. Bb5 {[%emt 0:01:03]} d4 {[%emt 0:02:09]} 6. Bxc6+ {[%emt 0:00:25]} bxc6 {[%emt 0:00:05]} 7. Ne2 {[%emt 0:00:03]} Nf6 {[%emt 0:01:54]} 8. d3 {[%emt 0:00:06]} Be7 {[%emt 0:00:26]} 9. b3 {[%emt 0:00:16]} O-O {[%emt 0:00:32]} 10. O-O {[%emt 0:00:03]} a5 {[%emt 0:01:17]} 11. a4 {[%emt 0:02:37]} Nd7 {[%emt 0:00:03]} 12. Bd2 {[%emt 0:00:25]} f5 {[%emt 0:00:21]} 13. Ng3 {[%emt 0:00:16]} Qc7 {[%emt 0:08:27]} 14. Qe2 {[%emt 0:02:55]} Nf6 {[%emt 0:05:58]} 15. Rae1 {[%emt 0:00:18]} Bd8 {[%emt 0:06:07]} 16. Ne5 {[%emt 0:03:47]} Ra7 {[%emt 0:01:03]} 17. Qf3 {[%emt 0:00:36]} Ra6 {[%emt 0:02:26]} 18. Re2 {[%emt 0:01:25]} Nd7 {[%emt 0:05:13]} 19. Nc4 {[%emt 0:00:51]} g6 {[%emt 0:01:16]} 20. Nh1 {[%emt 0:01:50]} Nf6 {[%emt 0:06:17]} 21. Nf2 {[%emt 0:02:32]} Ne8 {[%emt 0:00:02]} 22. Rfe1 {[%emt 0:06:21]} Nd6 {[%emt 0:00:32]} 23. exf5 {[%emt 0:00:41]} exf5 {[%emt 0:05:20]} 24. Bc1 {[%emt 0:01:18]} Bf6 {[%emt 0:02:30]} 25. Ba3 {[%emt 0:00:06]} Nb7 {[%emt 0:00:09]} 26. g3 {[%emt 0:00:24]} Ra8 {[%emt 0:00:56]} 27. Kg2 {[%emt 0:00:14]} Bd7 {[%emt 0:00:45]} 28. h4 {[%emt 0:00:54]} Rae8 {[%emt 0:02:16]} 29. Bc1 {[%emt 0:01:09]} Rxe2 {[%emt 0:00:32]} 30. Rxe2 {[%emt 0:00:04]} Re8 {[%emt 0:00:07]} 31. Rxe8+ {[%emt 0:00:05]} Bxe8 {[%emt 0:00:02]} 32. Bd2 {[%emt 0:00:25]} Bf7 {[%emt 0:01:02]} 33. Qe2 {[%emt 0:00:04]} Qd8 {[%emt 0:03:47]} 34. Nh3 {[%emt 0:01:54]} h6 {[%emt 0:02:32]} 35. Ng1 {[%emt 0:00:52]} Bd5+ {[%emt 0:01:08]} 36. Nf3 {[%emt 0:00:47]} Kg7 {[%emt 0:03:26]} 37. Kf2 {[%emt 0:02:24]} Qc7 {[%emt 0:02:08]} 38. Nfe5 {[%emt 0:01:36]} Qd8 {[%emt 0:03:45]} 39. Qe1 {[%emt 0:04:17]} g5 {[%emt 0:08:12]} 40. Nxa5 {[%emt 0:01:55]} gxf4 {[%emt 0:00:53]} 41. Nxb7 {[%emt 0:00:21]} Qe7 {[%emt 0:05:00]} 42. Bxf4 {[%emt 0:00:07]} Qxb7 {[%emt 0:00:01]} 43. Qd2 {[%emt 0:00:44]} Kh7 {[%emt 0:01:03]} 44. Qe2 {[%emt 0:02:05]} Qg7 {[%emt 0:00:27]} 45. Qh5 {[%emt 0:01:18]} Be6 {[%emt 0:04:07]} 46. Nf3 {[%emt 0:00:37]} 1-0

[Event "Hunan Belt and Road Open 2019"]
[Site "Hunan"]
[Date "2019.08.01"]
[Round "4.31"]
[White "Zhu, Jiner"]
[Black "Gan-Erdene, Sugar"]
[Result "1-0"]
[ECO "B20"]
[WhiteElo "2454"]
[BlackElo "2408"]
[Annotator "ChessBase"]
[PlyCount "87"]
[EventDate "2019.07.29"]
[EventType "swiss"]
[EventCountry "CHN"]
[SourceTitle "playchess.com"]
[Source "ChessBase"]
[SourceQuality "1"]
[TimeControl "5400+30"]

1. e4 {[%emt 0:00:00]} c5 {[%emt 0:00:00]} 2. b3 {[%emt 0:00:00]} Nc6 {[%emt 0:05:17]} 3. Bb2 {[%emt 0:00:00]} d6 {[%emt 0:00:30]} 4. f4 {[%emt 0:00:56]} e5 {[%emt 0:02:20]} 5. Nf3 {[%emt 0:19:30]} exf4 {[%emt 0:02:48]} 6. Bc4 {[%emt 0:01:32]} Bg4 {[%emt 0:07:09]} 7. O-O {[%emt 0:01:09]} Nf6 {[%emt 0:04:27]} 8. Qe1 {[%emt 0:01:40]} Be7 {[%emt 0:02:11]} 9. e5 {[%emt 0:06:34]} dxe5 {[%emt 0:04:50]} 10. Nxe5 {[%emt 0:00:10]} Nxe5 {[%emt 0:00:47]} 11. Bxe5 {[%emt 0:00:23]} O-O {[%emt 0:00:33]} 12. Rxf4 {[%emt 0:00:30]} Bh5 {[%emt 0:00:40]} 13. Nc3 {[%emt 0:01:02]} Bg6 {[%emt 0:02:34]} 14. Qf2 {[%emt 0:12:41]} Nd7 {[%emt 0:02:23]} 15. d4 {[%emt 0:00:08]} Bg5 {[%emt 0:12:34]} 16. Rf3 {[%emt 0:02:32]} Nxe5 {[%emt 0:07:06]} 17. dxe5 {[%emt 0:00:45]} Qd4 {[%emt 0:01:17]} 18. Re1 {[%emt 0:00:14]} a6 {[%emt 0:15:58]} 19. Nd5 {[%emt 0:31:48]} Rad8 {[%emt 0:04:11]} 20. e6 {[%emt 0:06:01]} fxe6 {[%emt 0:05:45]} 21. Nc7 {[%emt 0:01:57]} Rxf3 {[%emt 0:01:11]} 22. Qxd4 {[%emt 0:00:09]} cxd4 {[%emt 0:02:21]} 23. gxf3 {[%emt 0:00:09]} Be3+ {[%emt 0:00:20]} 24. Kf1 {[%emt 0:02:09]} Rd6 {[%emt 0:03:33]} 25. Bxe6+ {[%emt 0:09:14]} Kf8 {[%emt 0:08:40]} 26. Bc4 {[%emt 0:00:06]} b5 {[%emt 0:01:00]} 27. Bd3 {[%emt 0:00:30]} Bf7 {[%emt 0:01:06]} 28. a4 {[%emt 0:01:06]} Rc6 {[%emt 0:00:46]} 29. axb5 {[%emt 0:00:54]} Rxc7 {[%emt 0:00:08]} 30. bxa6 {[%emt 0:00:03]} Bd5 {[%emt 0:00:57]} 31. Ke2 {[%emt 0:00:26]} Rf7 {[%emt 0:00:54]} 32. Rf1 {[%emt 0:00:09]} Ke7 {[%emt 0:00:50]} 33. c4 {[%emt 0:00:21]} Ba8 {[%emt 0:00:30]} 34. b4 {[%emt 0:00:05]} Bf4 {[%emt 0:00:33]} 35. c5 {[%emt 0:00:44]} Kd7 {[%emt 0:00:24]} 36. b5 {[%emt 0:00:21]} Re7+ {[%emt 0:00:26]} 37. Be4 {[%emt 0:00:29]} Re5 {[%emt 0:00:47]} 38. Kd3 {[%emt 0:00:24]} Rxc5 {[%emt 0:00:40]} 39. Bxa8 {[%emt 0:00:07]} Rxb5 {[%emt 0:00:04]} 40. Ra1 {[%emt 0:00:22]} Rb3+ {[%emt 0:00:30]} 41. Kc4 {[%emt 0:00:30]} Rc3+ {[%emt 0:00:37]} 42. Kxd4 {[%emt 0:00:06]} Re3 {[%emt 0:00:49]} 43. Be4 {[%emt 0:00:31]} Rb3 {[%emt 0:00:28]} 44. a7 {[%emt 0:00:09]} 1-0

[Event "Hunan Belt and Road Open 2019"]
[Site "Hunan"]
[Date "2019.08.01"]
[Round "4.32"]
[White "Zhao, Yuanhe"]
[Black "Zhao, Chenxi"]
[Result "1-0"]
[ECO "E91"]
[WhiteElo "2448"]
[BlackElo "2400"]
[Annotator "NA"]
[PlyCount "125"]
[EventDate "2019.07.29"]
[EventType "swiss"]
[EventCountry "CHN"]
[SourceTitle "playchess.com"]
[Source "ChessBase"]
[SourceQuality "1"]
[TimeControl "5400+30"]

1. Nf3 {[%emt 0:00:00]} Nf6 {[%emt 0:00:00]} 2. c4 {[%emt 0:00:00]} g6 {[%emt 0:02:10]} 3. Nc3 {[%emt 0:00:00]} Bg7 {[%emt 0:00:05]} 4. e4 {[%emt 0:00:00]} d6 {[%emt 0:00:03]} 5. d4 {[%emt 0:00:00]} O-O {[%emt 0:00:08]} 6. h3 {[%emt 0:00:00]} a6 {[%emt 0:00:55]} 7. Be3 {[%emt 0:00:09]} c6 {[%emt 0:00:06]} 8. a4 {[%emt 0:00:36]} a5 {[%emt 0:00:07]} 9. Be2 {[%emt 0:00:29]} Na6 {[%emt 0:00:37]} 10. O-O {[%emt 0:00:54]} Nd7 {[%emt 0:02:12]} 11. Qd2 {[%emt 0:10:07]} e5 {[%emt 0:00:19]} 12. d5 {[%emt 0:05:17]} c5 {[%emt 0:00:14]} 13. Nb5 {[%emt 0:00:34]} Nf6 {[%emt 0:00:46]} 14. Bd3 {[%emt 0:01:31]} Nb4 {[%emt 0:00:10]} 15. Bb1 {[%emt 0:01:19]} Qe7 {[%emt 0:00:49]} 16. Bg5 {[%emt 0:01:28]} Bd7 {[%emt 0:00:31]} 17. Ra3 {[%emt 0:00:50]} b6 {[%emt 0:00:56]} 18. Nh2 {[%emt 0:05:27]} Bxb5 {[%emt 0:05:15]} 19. cxb5 {[%emt 0:00:11]} Qe8 {[%emt 0:00:56]} 20. Re1 {[%emt 0:03:04]} Nd7 {[%emt 0:01:21]} 21. Nf1 {[%emt 0:00:27]} f6 {[%emt 0:00:36]} 22. Be3 {[%emt 0:00:06]} Qf7 {[%emt 0:04:42]} 23. Ng3 {[%emt 0:17:16]} Kh8 {[%emt 0:03:47]} 24. Rd1 {[%emt 0:00:20]} Rfe8 {[%emt 0:04:08]} 25. Qc1 {[%emt 0:03:14]} Qf8 {[%emt 0:00:50]} 26. Bd2 {[%emt 0:00:33]} Rac8 {[%emt 0:00:46]} 27. Rf3 {[%emt 0:00:40]} c4 {[%emt 0:05:16]} 28. Rc3 {[%emt 0:08:25]} Nc5 {[%emt 0:01:41]} 29. Rxc4 {[%emt 0:00:38]} Nb3 {[%emt 0:01:11]} 30. Qc3 {[%emt 0:01:06]} Rxc4 {[%emt 0:00:46]} 31. Qxc4 {[%emt 0:00:23]} Nxd2 {[%emt 0:00:06]} 32. Rxd2 {[%emt 0:00:09]} Rc8 {[%emt 0:00:10]} 33. Qf1 {[%emt 0:00:57]} Bh6 {[%emt 0:03:21]} 34. Rd1 {[%emt 0:01:23]} Qf7 {[%emt 0:03:08]} 35. Ne2 {[%emt 0:04:11]} Qc7 {[%emt 0:01:56]} 36. Nc3 {[%emt 0:03:37]} Qc4 {[%emt 0:00:18]} 37. Qxc4 {[%emt 0:00:35]} Rxc4 {[%emt 0:00:07]} 38. Kf1 {[%emt 0:00:06]} Kg7 {[%emt 0:00:18]} 39. Ke2 {[%emt 0:00:24]} Kf7 {[%emt 0:00:09]} 40. g3 {[%emt 0:03:06]} Ke7 {[%emt 0:00:40]} 41. h4 {[%emt 0:00:09]} Kf7 {[%emt 0:00:08]} 42. f3 {[%emt 0:00:29]} Ke7 {[%emt 0:02:03]} 43. Bd3 {[%emt 0:00:11]} Rc8 {[%emt 0:05:09]} 44. Rh1 {[%emt 0:00:23]} Kf7 {[%emt 0:00:16]} 45. Rf1 {[%emt 0:07:29]} Kg7 {[%emt 0:03:46]} 46. f4 {[%emt 0:00:43]} Rc7 {[%emt 0:00:09]} 47. Kd2 {[%emt 0:04:41]} Rc8 {[%emt 0:01:12]} 48. Nb1 {[%emt 0:04:10]} f5 {[%emt 0:03:18]} 49. exf5 {[%emt 0:00:39]} exf4 {[%emt 0:07:26]} 50. g4 {[%emt 0:00:36]} g5 {[%emt 0:00:00]} 51. Nc3 {[%emt 0:01:29]} Rc5 {[%emt 0:04:55]} 52. h5 {[%emt 0:11:02]} Nxd5 {[%emt 0:07:16]} 53. Nxd5 {[%emt 0:00:52]} Rxd5 {[%emt 0:00:02]} 54. b4 {[%emt 0:00:17]} Rd4 {[%emt 0:04:23]} 55. bxa5 {[%emt 0:00:22]} Rxa4 {[%emt 0:00:02]} 56. axb6 {[%emt 0:00:25]} Ra8 {[%emt 0:00:01]} 57. b7 {[%emt 0:00:50]} Rb8 {[%emt 0:00:04]} 58. Be4 {[%emt 0:00:10]} d5 {[%emt 0:00:04]} 59. Bxd5 {[%emt 0:00:05]} Kf6 {[%emt 0:00:24]} 60. Rc1 {[%emt 0:00:40]} Bf8 {[%emt 0:00:12]} 61. Rc8 {[%emt 0:00:32]} Bd6 {[%emt 0:00:06]} 62. Rxb8 {[%emt 0:00:10]} Bxb8 {[%emt 0:00:02]} 63. h6 {[%emt 0:00:06]} 1-0

[Event "Hunan Belt and Road Open 2019"]
[Site "Hunan"]
[Date "2019.08.01"]
[Round "4.34"]
[White "Munkhgal, Gombosuren"]
[Black "Lou, Yiping"]
[Result "0-1"]
[ECO "D02"]
[WhiteElo "2442"]
[BlackElo "2489"]
[Annotator "ChessBase"]
[PlyCount "106"]
[EventDate "2019.07.29"]
[EventType "swiss"]
[EventCountry "CHN"]
[SourceTitle "playchess.com"]
[Source "ChessBase"]
[SourceQuality "1"]
[TimeControl "5400+30"]

1. d4 {[%emt 0:00:00]} Nf6 {[%emt 0:00:03]} 2. Nf3 {[%emt 0:00:00]} d5 {[%emt 0:01:25]} 3. Bf4 {[%emt 0:00:31]} c5 {[%emt 0:00:57]} 4. e3 {[%emt 0:00:11]} Nc6 {[%emt 0:00:16]} 5. Nbd2 {[%emt 0:00:06]} e6 {[%emt 0:05:07]} 6. c3 {[%emt 0:00:53]} cxd4 {[%emt 0:00:13]} 7. exd4 {[%emt 0:00:05]} Nh5 {[%emt 0:00:06]} 8. Be3 {[%emt 0:01:29]} Bd6 {[%emt 0:01:08]} 9. Ne5 {[%emt 0:00:23]} g6 {[%emt 0:01:04]} 10. Nd3 {[%emt 0:00:08]} Qc7 {[%emt 0:03:21]} 11. g3 {[%emt 0:01:11]} O-O {[%emt 0:02:56]} 12. Bg2 {[%emt 0:02:44]} b6 {[%emt 0:01:27]} 13. Rc1 {[%emt 0:11:19]} Na5 {[%emt 0:10:12]} 14. c4 {[%emt 0:10:45]} Bb7 {[%emt 0:04:13]} 15. c5 {[%emt 0:05:05]} bxc5 {[%emt 0:06:11]} 16. Nxc5 {[%emt 0:06:03]} Bc6 {[%emt 0:05:09]} 17. O-O {[%emt 0:05:02]} Qb6 {[%emt 0:01:36]} 18. b3 {[%emt 0:05:47]} Ng7 {[%emt 0:03:20]} 19. Nf3 {[%emt 0:02:33]} Nf5 {[%emt 0:01:40]} 20. Ne5 {[%emt 0:06:14]} Rfc8 {[%emt 0:06:03]} 21. Re1 {[%emt 0:25:28]} Be8 {[%emt 0:05:52]} 22. Qd2 {[%emt 0:03:41]} Nc6 {[%emt 0:09:51]} 23. Ng4 {[%emt 0:00:30]} Be7 {[%emt 0:01:53]} 24. Nh6+ {[%emt 0:01:23]} Nxh6 {[%emt 0:06:22]} 25. Bxh6 {[%emt 0:00:03]} Qb4 {[%emt 0:00:06]} 26. Qxb4 {[%emt 0:07:18]} Nxb4 {[%emt 0:00:01]} 27. a3 {[%emt 0:01:25]} Bxc5 {[%emt 0:01:18]} 28. Rxc5 {[%emt 0:00:05]} Rxc5 {[%emt 0:00:27]} 29. dxc5 {[%emt 0:00:04]} Nd3 {[%emt 0:00:18]} 30. Rd1 {[%emt 0:00:35]} Nxc5 {[%emt 0:00:22]} 31. b4 {[%emt 0:00:00]} Nb7 {[%emt 0:05:22]} 32. Rc1 {[%emt 0:00:20]} Nd6 {[%emt 0:01:09]} 33. Be3 {[%emt 0:01:34]} a6 {[%emt 0:02:29]} 34. Bf1 {[%emt 0:00:45]} Bb5 {[%emt 0:00:18]} 35. Bf4 {[%emt 0:01:24]} Nf5 {[%emt 0:01:33]} 36. Rc7 {[%emt 0:00:26]} Nd4 {[%emt 0:02:58]} 37. Be3 {[%emt 0:00:15]} Nf3+ {[%emt 0:00:11]} 38. Kg2 {[%emt 0:00:05]} Ne1+ {[%emt 0:00:02]} 39. Kg1 {[%emt 0:00:05]} d4 {[%emt 0:00:27]} 40. Bxb5 {[%emt 0:01:01]} axb5 {[%emt 0:00:29]} 41. Bh6 {[%emt 0:00:01]} d3 {[%emt 0:03:11]} 42. Rd7 {[%emt 0:00:53]} Nf3+ {[%emt 0:01:14]} 43. Kg2 {[%emt 0:00:18]} Ne5 {[%emt 0:00:03]} 44. Rd4 {[%emt 0:00:17]} f6 {[%emt 0:00:33]} 45. Bf4 {[%emt 0:00:46]} Rxa3 {[%emt 0:00:26]} 46. Bxe5 {[%emt 0:00:48]} fxe5 {[%emt 0:00:05]} 47. Rd7 {[%emt 0:00:05]} e4 {[%emt 0:00:18]} 48. Rd4 {[%emt 0:01:23]} Ra1 {[%emt 0:00:30]} 49. g4 {[%emt 0:01:18]} Kf7 {[%emt 0:01:05]} 50. Rd7+ {[%emt 0:00:26]} Kf6 {[%emt 0:00:09]} 51. Kg3 {[%emt 0:00:02]} g5 {[%emt 0:00:42]} 52. h4 {[%emt 0:00:22]} Rg1+ {[%emt 0:00:53]} 53. Kh2 {[%emt 0:00:15]} Rxg4 {[%emt 0:00:07]} 0-1

[Event "Hunan Belt and Road Open 2019"]
[Site "Hunan"]
[Date "2019.08.01"]
[Round "4.35"]
[White "Fang, Yuxiang"]
[Black "Setyaki, Azarya Jodi"]
[Result "1/2-1/2"]
[ECO "A45"]
[WhiteElo "2476"]
[BlackElo "2409"]
[Annotator "ChessBase"]
[PlyCount "107"]
[EventDate "2019.07.29"]
[EventType "swiss"]
[EventCountry "CHN"]
[SourceTitle "playchess.com"]
[Source "ChessBase"]
[SourceQuality "1"]
[TimeControl "5400+30"]

1. d4 {[%emt 0:01:10]} Nf6 {[%emt 0:00:00]} 2. Bf4 {[%emt 0:01:26]} g6 {[%emt 0:00:53]} 3. Nc3 {[%emt 0:00:24]} d5 {[%emt 0:00:09]} 4. e3 {[%emt 0:00:33]} Bg7 {[%emt 0:00:08]} 5. h4 {[%emt 0:00:47]} h5 {[%emt 0:01:33]} 6. Be2 {[%emt 0:03:25]} O-O {[%emt 0:01:08]} 7. Nf3 {[%emt 0:03:16]} c5 {[%emt 0:01:05]} 8. Qd2 {[%emt 0:12:53]} cxd4 {[%emt 0:08:52]} 9. exd4 {[%emt 0:00:06]} Bg4 {[%emt 0:02:23]} 10. Ne5 {[%emt 0:08:58]} Bxe2 {[%emt 0:00:42]} 11. Qxe2 {[%emt 0:01:38]} Nc6 {[%emt 0:00:44]} 12. O-O-O {[%emt 0:00:58]} Rc8 {[%emt 0:00:29]} 13. Kb1 {[%emt 0:01:36]} Qb6 {[%emt 0:03:24]} 14. Qb5 {[%emt 0:10:39]} Qxb5 {[%emt 0:04:01]} 15. Nxb5 {[%emt 0:00:01]} Ne4 {[%emt 0:02:44]} 16. Rhf1 {[%emt 0:04:37]} a6 {[%emt 0:01:45]} 17. Na3 {[%emt 0:00:29]} Rfd8 {[%emt 0:06:01]} 18. c3 {[%emt 0:01:35]} Na5 {[%emt 0:13:46]} 19. f3 {[%emt 0:04:29]} Nd6 {[%emt 0:01:43]} 20. Nd3 {[%emt 0:01:34]} Nac4 {[%emt 0:03:57]} 21. Nxc4 {[%emt 0:00:38]} Nxc4 {[%emt 0:00:03]} 22. Rfe1 {[%emt 0:05:22]} Bf6 {[%emt 0:02:08]} 23. g3 {[%emt 0:02:13]} a5 {[%emt 0:00:18]} 24. a4 {[%emt 0:02:17]} Nd6 {[%emt 0:00:24]} 25. Bxd6 {[%emt 0:03:16]} Rxd6 {[%emt 0:01:36]} 26. Ne5 {[%emt 0:00:12]} e6 {[%emt 0:02:08]} 27. Kc2 {[%emt 0:02:03]} Kf8 {[%emt 0:00:29]} 28. f4 {[%emt 0:01:58]} Ke7 {[%emt 0:01:12]} 29. Ra1 {[%emt 0:00:53]} Rc7 {[%emt 0:02:07]} 30. Ra3 {[%emt 0:00:44]} Rb6 {[%emt 0:00:09]} 31. Rb3 {[%emt 0:01:53]} Rxb3 32. Kxb3 Bxe5 {[%emt 0:02:02]} 33. fxe5 {[%emt 0:00:00]} f6 {[%emt 0:00:13]} 34. exf6+ {[%emt 0:00:50]} Kxf6 {[%emt 0:00:03]} 35. Kc2 {[%emt 0:00:18]} Ke7 {[%emt 0:01:34]} 36. Kd3 {[%emt 0:02:50]} Rc8 {[%emt 0:00:08]} 37. Rf1 {[%emt 0:00:30]} Rg8 {[%emt 0:00:07]} 38. b4 {[%emt 0:00:55]} Ra8 {[%emt 0:01:26]} 39. Rb1 {[%emt 0:00:51]} Kf6 {[%emt 0:02:25]} 40. c4 {[%emt 0:03:27]} dxc4+ {[%emt 0:02:05]} 41. Kxc4 {[%emt 0:00:00]} axb4 {[%emt 0:00:46]} 42. Rxb4 {[%emt 0:02:23]} Rc8+ {[%emt 0:02:05]} 43. Kb3 {[%emt 0:00:56]} Rc7 {[%emt 0:03:37]} 44. a5 {[%emt 0:00:31]} Kf5 {[%emt 0:00:38]} 45. Rb5+ {[%emt 0:00:04]} Ke4 {[%emt 0:00:36]} 46. Re5+ {[%emt 0:00:08]} Kxd4 {[%emt 0:00:04]} 47. Rxe6 {[%emt 0:00:01]} Rc3+ {[%emt 0:01:11]} 48. Ka4 {[%emt 0:00:18]} Rxg3 {[%emt 0:00:14]} 49. Rb6 {[%emt 0:00:03]} Kc5 {[%emt 0:03:14]} 50. Rxb7 {[%emt 0:00:18]} Rg4+ {[%emt 0:00:04]} 51. Kb3 {[%emt 0:00:02]} Rxh4 {[%emt 0:01:58]} 52. a6 {[%emt 0:00:22]} Rh1 {[%emt 0:00:27]} 53. Kb2 {[%emt 0:00:23]} Rh2+ {[%emt 0:00:22]} 54. Kb3 {[%emt 0:00:02]} 1/2-1/2

[Event "Hunan Belt and Road Open 2019"]
[Site "Hunan"]
[Date "2019.08.01"]
[Round "4.36"]
[White "Li, Shilong"]
[Black "Zou, Chen"]
[Result "0-1"]
[ECO "E05"]
[WhiteElo "2457"]
[BlackElo "2440"]
[Annotator "ChessBase"]
[PlyCount "124"]
[EventDate "2019.07.29"]
[EventType "swiss"]
[EventCountry "CHN"]
[SourceTitle "playchess.com"]
[Source "ChessBase"]
[SourceQuality "1"]
[TimeControl "5400+30"]

1. d4 {[%emt 0:00:00]} Nf6 {[%emt 0:03:15]} 2. c4 {[%emt 0:00:00]} e6 {[%emt 0:00:20]} 3. Nf3 {[%emt 0:00:00]} d5 {[%emt 0:00:15]} 4. g3 {[%emt 0:00:00]} Be7 {[%emt 0:03:39]} 5. Bg2 {[%emt 0:00:21]} O-O {[%emt 0:00:07]} 6. O-O {[%emt 0:00:42]} dxc4 {[%emt 0:00:08]} 7. Qa4 {[%emt 0:00:52]} a6 {[%emt 0:01:30]} 8. Qxc4 {[%emt 0:00:12]} b5 {[%emt 0:00:05]} 9. Qc2 {[%emt 0:00:04]} Bb7 {[%emt 0:00:21]} 10. Bd2 {[%emt 0:00:05]} Be4 {[%emt 0:00:36]} 11. Qc1 {[%emt 0:00:05]} Bb7 {[%emt 0:00:11]} 12. Rd1 {[%emt 0:02:16]} Qc8 {[%emt 0:10:21]} 13. a4 {[%emt 0:52:01]} Nbd7 {[%emt 0:02:51]} 14. axb5 {[%emt 0:11:24]} axb5 {[%emt 0:00:48]} 15. Na3 {[%emt 0:00:51]} b4 {[%emt 0:06:00]} 16. Nc4 {[%emt 0:00:49]} c5 {[%emt 0:04:32]} 17. Bf4 {[%emt 0:03:42]} Bd5 {[%emt 0:11:34]} 18. Nd6 {[%emt 0:19:48]} Qc6 {[%emt 0:00:39]} 19. dxc5 {[%emt 0:00:06]} Rxa1 {[%emt 0:12:20]} 20. Qxa1 {[%emt 0:00:02]} Nxc5 {[%emt 0:00:26]} 21. Nd4 {[%emt 0:02:47]} Qd7 {[%emt 0:03:07]} 22. N4f5 {[%emt 0:01:50]} Bd8 {[%emt 0:01:06]} 23. Ne3 {[%emt 0:00:44]} Bxg2 {[%emt 0:01:50]} 24. Nxg2 {[%emt 0:01:43]} Nd5 {[%emt 0:02:15]} 25. Qc1 {[%emt 0:00:12]} Qa4 {[%emt 0:02:11]} 26. Be5 {[%emt 0:01:10]} Nd7 {[%emt 0:02:14]} 27. Bd4 {[%emt 0:00:34]} Qa6 {[%emt 0:05:47]} 28. Nc4 {[%emt 0:00:48]} Bf6 {[%emt 0:01:59]} 29. e4 {[%emt 0:00:44]} Rc8 {[%emt 0:05:08]} 30. b3 {[%emt 0:00:10]} Bxd4 {[%emt 0:00:45]} 31. exd5 {[%emt 0:00:50]} Nc5 {[%emt 0:04:31]} 32. dxe6 {[%emt 0:00:36]} Nxb3 {[%emt 0:07:20]} 33. exf7+ {[%emt 0:00:04]} Kf8 {[%emt 0:00:02]} 34. Qc2 {[%emt 0:00:25]} Qxc4 {[%emt 0:00:03]} 35. Qxh7 {[%emt 0:00:07]} Kxf7 {[%emt 0:04:40]} 36. Nf4 {[%emt 0:00:05]} Ra8 {[%emt 0:03:45]} 37. Re1 {[%emt 0:00:55]} Qc6 {[%emt 0:01:06]} 38. Qh5+ {[%emt 0:01:22]} Kg8 {[%emt 0:00:02]} 39. Nd5 {[%emt 0:00:06]} Bc5 {[%emt 0:00:32]} 40. h4 {[%emt 0:00:53]} Rf8 {[%emt 0:00:50]} 41. Ne7+ {[%emt 0:00:25]} Bxe7 {[%emt 0:00:04]} 42. Rxe7 {[%emt 0:00:01]} Qc1+ {[%emt 0:01:02]} 43. Kg2 {[%emt 0:00:06]} Qc5 {[%emt 0:00:16]} 44. Qxc5 {[%emt 0:01:21]} Nxc5 {[%emt 0:00:02]} 45. Rc7 {[%emt 0:00:08]} Nd3 {[%emt 0:00:29]} 46. Rb7 {[%emt 0:00:27]} Rxf2+ {[%emt 0:00:05]} 47. Kh3 {[%emt 0:00:02]} Rf7 {[%emt 0:00:45]} 48. Rb8+ {[%emt 0:00:10]} Rf8 {[%emt 0:00:04]} 49. Rb7 {[%emt 0:00:03]} Rc8 {[%emt 0:01:05]} 50. Kg4 {[%emt 0:01:22]} Rc3 {[%emt 0:00:18]} 51. Kf5 {[%emt 0:00:01]} b3 {[%emt 0:00:19]} 52. g4 {[%emt 0:00:16]} b2 {[%emt 0:00:31]} 53. g5 {[%emt 0:00:32]} Rc1 {[%emt 0:00:27]} 54. Rb8+ {[%emt 0:00:19]} Kf7 {[%emt 0:00:04]} 55. Rb7+ {[%emt 0:00:08]} Ke8 {[%emt 0:01:00]} 56. Rb8+ {[%emt 0:00:08]} Ke7 {[%emt 0:00:20]} 57. Rb7+ {[%emt 0:00:15]} Kd6 {[%emt 0:00:37]} 58. Rb6+ {[%emt 0:01:30]} Kc5 {[%emt 0:00:48]} 59. Rxb2 {[%emt 0:00:19]} Nxb2 {[%emt 0:00:04]} 60. Kg6 {[%emt 0:00:04]} Nd3 {[%emt 0:00:15]} 61. Kxg7 {[%emt 0:00:13]} Nf4 {[%emt 0:00:02]} 62. Kh6 {[%emt 0:00:41]} Rh1 {[%emt 0:00:11]} 0-1